Workbook

Sheet MedianaGlobal12K
B1: Data from Kaufmann et. al (2020).
A2: 0 | B2: 0.0876 | C2: 12000 | D2: -0.1056
A3: 100 | B3: 0 | C3: 11900 | D3: -0.9721
A4: 200 | B4: 0.0504 | C4: 11800 | D4: -0.8834
A5: 300 | B5: 0.0249 | C5: 11700 | D5: -0.7952
A6: 400 | B6: 0.0349 | C6: 11600 | D6: -0.6937
A7: 500 | B7: 0.0369 | C7: 11500 | D7: -0.6044
A8: 600 | B8: 0.0728 | C8: 11400 | D8: -0.5392
A9: 700 | B9: 0.07405 | C9: 11300 | D9: -0.4747
A10: 800 | B10: 0.0838 | C10: 11200 | D10: -0.4071
A11: 900 | B11: 0.0843 | C11: 11100 | D11: -0.3447
A12: 1000 | B12: 0.1142 | C12: 11000 | D12: -0.2693
A13: 1100 | B13: 0.1403 | C13: 10900 | D13: -0.2270
A14: 1200 | B14: 0.1708 | C14: 10800 | D14: -0.1713
A15: 1300 | B15: 0.1794 | C15: 10700 | D15: -0.1208
A16: 1400 | B16: 0.1376 | C16: 10600 | D16: -0.0721
A17: 1500 | B17: 0.1302 | C17: 10500 | D17: -0.0170 | F17: Figure 1. | G17: Evolution of the Global Median 12k years temperature, 500-year scale.
A18: 1600 | B18: 0.1297 | C18: 10400 | D18: 0.0121 | G18: Source: Author elaboration (adapted from Kaufman et al. (2020 p. 06) from CSV file
A19: 1700 | B19: 0.1426 | C19: 10300 | D19: 0.0459 | G19: data at https://www.ncdc.noaa.gov/paleo/study/29712).
A20: 1800 | B20: 0.1515 | C20: 10200 | D20: 0.0684
A21: 1900 | B21: 0.135 | C21: 10100 | D21: 0.0931
A22: 2000 | B22: 0.1572 | C22: 10000 | D22: 0.1236
A23: 2100 | B23: 0.1733 | C23: 9900 | D23: 0.1548
A24: 2200 | B24: 0.1993 | C24: 9800 | D24: 0.1797
A25: 2300 | B25: 0.2143 | C25: 9700 | D25: 0.2097
A26: 2400 | B26: 0.2178 | C26: 9600 | D26: 0.2344
A27: 2500 | B27: 0.2238 | C27: 9500 | D27: 0.244
A28: 2600 | B28: 0.2204 | C28: 9400 | D28: 0.258
A29: 2700 | B29: 0.2284 | C29: 9300 | D29: 0.2656
A30: 2800 | B30: 0.2461 | C30: 9200 | D30: 0.2734
A31: 2900 | B31: 0.269 | C31: 9100 | D31: 0.2824
A32: 3000 | B32: 0.2869 | C32: 9000 | D32: 0.2831
A33: 3100 | B33: 0.2991 | C33: 8900 | D33: 0.2903
A34: 3200 | B34: 0.3019 | C34: 8800 | D34: 0.2923
A35: 3300 | B35: 0.3081 | C35: 8700 | D35: 0.2988
A36: 3400 | B36: 0.3328 | C36: 8600 | D36: 0.3125
A37: 3500 | B37: 0.3315 | C37: 8500 | D37: 0.3238 | O37: Figure 3. | P37: Enlarged projection of figure 2, on a scale of every 100 years.
A38: 3600 | B38: 0.3566 | C38: 8400 | D38: 0.3261 | O38: Source: Author elaboration (adapted from Kaufman et al. (2020 p. 06) from CSV file data at | W38: https://www.ncdc.noaa.gov/paleo/study/29712).
A39: 3700 | B39: 0.3662 | C39: 8300 | D39: 0.3388
A40: 3800 | B40: 0.374 | C40: 8200 | D40: 0.3526 | F40: Figure 2. | G40: Linear graphical representation of figure 1.
A41: 3900 | B41: 0.362 | C41: 8100 | D41: 0.3767 | F41: Source: Author elaboration (adapted from Kaufman et al. (2020 p. 06) from CSV file data at
A42: 4000 | B42: 0.3622 | C42: 8000 | D42: 0.3859 | F42: https://www.ncdc.noaa.gov/paleo/study/29712).
A43: 4100 | B43: 0.3608 | C43: 7900 | D43: 0.4028
A44: 4200 | B44: 0.3617 | C44: 7800 | D44: 0.4208
A45: 4300 | B45: 0.3505 | C45: 7700 | D45: 0.4307
A46: 4400 | B46: 0.3595 | C46: 7600 | D46: 0.4385
A47: 4500 | B47: 0.3704 | C47: 7500 | D47: 0.4471
A48: 4600 | B48: 0.3815 | C48: 7400 | D48: 0.4706
A49: 4700 | B49: 0.3948 | C49: 7300 | D49: 0.4775
A50: 4800 | B50: 0.4064 | C50: 7200 | D50: 0.494
A51: 4900 | B51: 0.423 | C51: 7100 | D51: 0.5105
A52: 5000 | B52: 0.4321 | C52: 7000 | D52: 0.512
A53: 5100 | B53: 0.4316 | C53: 6900 | D53: 0.5195
A54: 5200 | B54: 0.4387 | C54: 6800 | D54: 0.5262
A55: 5300 | B55: 0.4524 | C55: 6700 | D55: 0.5346
A56: 5400 | B56: 0.4465 | C56: 6600 | D56: 0.5428
A57: 5500 | B57: 0.4513 | C57: 6500 | D57: 0.5331
A58: 5600 | B58: 0.4661 | C58: 6400 | D58: 0.5373
A59: 5700 | B59: 0.4782 | C59: 6300 | D59: 0.5321
A60: 5800 | B60: 0.4916 | C60: 6200 | D60: 0.5333
A61: 5900 | B61: 0.4926 | C61: 6100 | D61: 0.5271
A62: 6000 | B62: 0.5135 | C62: 6000 | D62: 0.5135
A63: 6100 | B63: 0.5271 | C63: 5900 | D63: 0.4926
A64: 6200 | B64: 0.5333 | C64: 5800 | D64: 0.4916
A65: 6300 | B65: 0.5321 | C65: 5700 | D65: 0.4782
A66: 6400 | B66: 0.5373 | C66: 5600 | D66: 0.4661
A67: 6500 | B67: 0.5331 | C67: 5500 | D67: 0.4513
A68: 6600 | B68: 0.5428 | C68: 5400 | D68: 0.4465
A69: 6700 | B69: 0.5346 | C69: 5300 | D69: 0.4524
A70: 6800 | B70: 0.5262 | C70: 5200 | D70: 0.4387
A71: 6900 | B71: 0.5195 | C71: 5100 | D71: 0.4316
A72: 7000 | B72: 0.512 | C72: 5000 | D72: 0.4321
A73: 7100 | B73: 0.5105 | C73: 4900 | D73: 0.423
A74: 7200 | B74: 0.494 | C74: 4800 | D74: 0.4064
A75: 7300 | B75: 0.4775 | C75: 4700 | D75: 0.3948
A76: 7400 | B76: 0.4706 | C76: 4600 | D76: 0.3815
A77: 7500 | B77: 0.4471 | C77: 4500 | D77: 0.3704
A78: 7600 | B78: 0.4385 | C78: 4400 | D78: 0.3595
A79: 7700 | B79: 0.4307 | C79: 4300 | D79: 0.3505
A80: 7800 | B80: 0.4208 | C80: 4200 | D80: 0.3617
A81: 7900 | B81: 0.4028 | C81: 4100 | D81: 0.3608
A82: 8000 | B82: 0.3859 | C82: 4000 | D82: 0.3622
A83: 8100 | B83: 0.3767 | C83: 3900 | D83: 0.362
A84: 8200 | B84: 0.3526 | C84: 3800 | D84: 0.374
A85: 8300 | B85: 0.3388 | C85: 3700 | D85: 0.3662
A86: 8400 | B86: 0.3261 | C86: 3600 | D86: 0.3566
A87: 8500 | B87: 0.3238 | C87: 3500 | D87: 0.3315
A88: 8600 | B88: 0.3125 | C88: 3400 | D88: 0.3328
A89: 8700 | B89: 0.2988 | C89: 3300 | D89: 0.3081
A90: 8800 | B90: 0.2923 | C90: 3200 | D90: 0.3019
A91: 8900 | B91: 0.2903 | C91: 3100 | D91: 0.2991
A92: 9000 | B92: 0.2831 | C92: 3000 | D92: 0.2869
A93: 9100 | B93: 0.2824 | C93: 2900 | D93: 0.269
A94: 9200 | B94: 0.2734 | C94: 2800 | D94: 0.2461
A95: 9300 | B95: 0.2656 | C95: 2700 | D95: 0.2284
A96: 9400 | B96: 0.258 | C96: 2600 | D96: 0.2204
A97: 9500 | B97: 0.244 | C97: 2500 | D97: 0.2238
A98: 9600 | B98: 0.2344 | C98: 2400 | D98: 0.2178
A99: 9700 | B99: 0.2097 | C99: 2300 | D99: 0.2143
A100: 9800 | B100: 0.1797 | C100: 2200 | D100: 0.1993
A101: 9900 | B101: 0.1548 | C101: 2100 | D101: 0.1733
A102: 10000 | B102: 0.1236 | C102: 2000 | D102: 0.1572
A103: 10100 | B103: 0.0931 | C103: 1900 | D103: 0.135
A104: 10200 | B104: 0.0684 | C104: 1800 | D104: 0.1515
A105: 10300 | B105: 0.0459 | C105: 1700 | D105: 0.1426
A106: 10400 | B106: 0.0121 | C106: 1600 | D106: 0.1297
A107: 10500 | B107: -0.0170 | C107: 1500 | D107: 0.1302
A108: 10600 | B108: -0.0721 | C108: 1400 | D108: 0.1376
A109: 10700 | B109: -0.1208 | C109: 1300 | D109: 0.1794
A110: 10800 | B110: -0.1713 | C110: 1200 | D110: 0.1708
A111: 10900 | B111: -0.2270 | C111: 1100 | D111: 0.1403
A112: 11000 | B112: -0.2693 | C112: 1000 | D112: 0.1142
A113: 11100 | B113: -0.3447 | C113: 900 | D113: 0.0843
A114: 11200 | B114: -0.4071 | C114: 800 | D114: 0.0838
A115: 11300 | B115: -0.4747 | C115: 700 | D115: 0.07405
A116: 11400 | B116: -0.5392 | C116: 600 | D116: 0.0728
A117: 11500 | B117: -0.6044 | C117: 500 | D117: 0.0369
A118: 11600 | B118: -0.6937 | C118: 400 | D118: 0.0349
A119: 11700 | B119: -0.7952 | C119: 300 | D119: 0.0249
A120: 11800 | B120: -0.8834 | C120: 200 | D120: 0.0504
A121: 11900 | B121: -0.9721 | C121: 100 | D121: 0
A122: 12000 | B122: -0.1056 | C122: 0 | D122: 0.0876

Sheet 90% conf perc 5-95 (incerteza)
A1: Anos | B1: ='[1]MedianGlobal,Percentis 5-95conv'!B1 -> global_5 | C1: ='[1]MedianGlobal,Percentis 5-95conv'!D1 -> global_95
A2: ='[1]MedianGlobal,Percentis 5-95conv'!A122 -> 12000 | B2: ='[1]MedianGlobal,Percentis 5-95conv'!B122 -> -4.90621469 | C2: ='[1]MedianGlobal,Percentis 5-95conv'!D122 -> -0.5718039204
A3: ='[1]MedianGlobal,Percentis 5-95conv'!A121 -> 11900 | B3: ='[1]MedianGlobal,Percentis 5-95conv'!B121 -> -4.5549978 | C3: ='[1]MedianGlobal,Percentis 5-95conv'!D121 -> -0.5072358289
A4: ='[1]MedianGlobal,Percentis 5-95conv'!A120 -> 11800 | B4: ='[1]MedianGlobal,Percentis 5-95conv'!B120 -> -4.0555506 | C4: ='[1]MedianGlobal,Percentis 5-95conv'!D120 -> -0.5023440645
A5: ='[1]MedianGlobal,Percentis 5-95conv'!A119 -> 11700 | B5: ='[1]MedianGlobal,Percentis 5-95conv'!B119 -> -3.7182795 | C5: ='[1]MedianGlobal,Percentis 5-95conv'!D119 -> -0.429676734
A6: ='[1]MedianGlobal,Percentis 5-95conv'!A118 -> 11600 | B6: ='[1]MedianGlobal,Percentis 5-95conv'!B118 -> -3.4056186 | C6: ='[1]MedianGlobal,Percentis 5-95conv'!D118 -> -0.356561992
A7: ='[1]MedianGlobal,Percentis 5-95conv'!A117 -> 11500 | B7: ='[1]MedianGlobal,Percentis 5-95conv'!B117 -> -3.0453062 | C7: ='[1]MedianGlobal,Percentis 5-95conv'!D117 -> -0.2735791834
A8: ='[1]MedianGlobal,Percentis 5-95conv'!A116 -> 11400 | B8: ='[1]MedianGlobal,Percentis 5-95conv'!B116 -> -2.7276379 | C8: ='[1]MedianGlobal,Percentis 5-95conv'!D116 -> -0.2076456209
A9: ='[1]MedianGlobal,Percentis 5-95conv'!A115 -> 11300 | B9: ='[1]MedianGlobal,Percentis 5-95conv'!B115 -> -2.4013725 | C9: ='[1]MedianGlobal,Percentis 5-95conv'!D115 -> -0.1508591248
A10: ='[1]MedianGlobal,Percentis 5-95conv'!A114 -> 11200 | B10: ='[1]MedianGlobal,Percentis 5-95conv'!B114 -> -2.18197248 | C10: ='[1]MedianGlobal,Percentis 5-95conv'!D114 -> -0.09710145247
A11: ='[1]MedianGlobal,Percentis 5-95conv'!A113 -> 11100 | B11: ='[1]MedianGlobal,Percentis 5-95conv'!B113 -> -1.97549611 | C11: ='[1]MedianGlobal,Percentis 5-95conv'!D113 -> -0.02085088744
A12: ='[1]MedianGlobal,Percentis 5-95conv'!A112 -> 11000 | B12: ='[1]MedianGlobal,Percentis 5-95conv'!B112 -> -1.74650818 | C12: ='[1]MedianGlobal,Percentis 5-95conv'!D112 -> 0.03534256062
A13: ='[1]MedianGlobal,Percentis 5-95conv'!A111 -> 10900 | B13: ='[1]MedianGlobal,Percentis 5-95conv'!B111 -> -1.493067 | C13: ='[1]MedianGlobal,Percentis 5-95conv'!D111 -> 0.0994387942
A14: ='[1]MedianGlobal,Percentis 5-95conv'!A110 -> 10800 | B14: ='[1]MedianGlobal,Percentis 5-95conv'!B110 -> -1.33944798 | C14: ='[1]MedianGlobal,Percentis 5-95conv'!D110 -> 0.1582706789
A15: ='[1]MedianGlobal,Percentis 5-95conv'!A109 -> 10700 | B15: ='[1]MedianGlobal,Percentis 5-95conv'!B109 -> -1.19141924 | C15: ='[1]MedianGlobal,Percentis 5-95conv'!D109 -> 0.2069407226
A16: ='[1]MedianGlobal,Percentis 5-95conv'!A108 -> 10600 | B16: ='[1]MedianGlobal,Percentis 5-95conv'!B108 -> -1.01449485 | C16: ='[1]MedianGlobal,Percentis 5-95conv'!D108 -> 0.2408988759
A17: ='[1]MedianGlobal,Percentis 5-95conv'!A107 -> 10500 | B17: ='[1]MedianGlobal,Percentis 5-95conv'!B107 -> -0.8299109321 | C17: ='[1]MedianGlobal,Percentis 5-95conv'!D107 -> 0.302471568
A18: ='[1]MedianGlobal,Percentis 5-95conv'!A106 -> 10400 | B18: ='[1]MedianGlobal,Percentis 5-95conv'!B106 -> -0.7262584514 | C18: ='[1]MedianGlobal,Percentis 5-95conv'!D106 -> 0.3322779261
A19: ='[1]MedianGlobal,Percentis 5-95conv'!A105 -> 10300 | B19: ='[1]MedianGlobal,Percentis 5-95conv'!B105 -> -0.5656558039 | C19: ='[1]MedianGlobal,Percentis 5-95conv'!D105 -> 0.3693847499
A20: ='[1]MedianGlobal,Percentis 5-95conv'!A104 -> 10200 | B20: ='[1]MedianGlobal,Percentis 5-95conv'!B104 -> -0.5218416232 | C20: ='[1]MedianGlobal,Percentis 5-95conv'!D104 -> 0.3754431239
A21: ='[1]MedianGlobal,Percentis 5-95conv'!A103 -> 10100 | B21: ='[1]MedianGlobal,Percentis 5-95conv'!B103 -> -0.4549067416 | C21: ='[1]MedianGlobal,Percentis 5-95conv'!D103 -> 0.4112599071
A22: ='[1]MedianGlobal,Percentis 5-95conv'!A102 -> 10000 | B22: ='[1]MedianGlobal,Percentis 5-95conv'!B102 -> -0.4012026465 | C22: ='[1]MedianGlobal,Percentis 5-95conv'!D102 -> 0.4381966317
A23: ='[1]MedianGlobal,Percentis 5-95conv'!A101 -> 9900 | B23: ='[1]MedianGlobal,Percentis 5-95conv'!B101 -> -0.2761477491 | C23: ='[1]MedianGlobal,Percentis 5-95conv'!D101 -> 0.4704835369
A24: ='[1]MedianGlobal,Percentis 5-95conv'!A100 -> 9800 | B24: ='[1]MedianGlobal,Percentis 5-95conv'!B100 -> -0.1999607499 | C24: ='[1]MedianGlobal,Percentis 5-95conv'!D100 -> 0.5140653911
A25: ='[1]MedianGlobal,Percentis 5-95conv'!A99 -> 9700 | B25: ='[1]MedianGlobal,Percentis 5-95conv'!B99 -> -0.113904344 | C25: ='[1]MedianGlobal,Percentis 5-95conv'!D99 -> 0.5306738282
A26: ='[1]MedianGlobal,Percentis 5-95conv'!A98 -> 9600 | B26: ='[1]MedianGlobal,Percentis 5-95conv'!B98 -> -0.07018350932 | C26: ='[1]MedianGlobal,Percentis 5-95conv'!D98 -> 0.5777253776
A27: ='[1]MedianGlobal,Percentis 5-95conv'!A97 -> 9500 | B27: ='[1]MedianGlobal,Percentis 5-95conv'!B97 -> -0.03433268926 | C27: ='[1]MedianGlobal,Percentis 5-95conv'!D97 -> 0.60360233
A28: ='[1]MedianGlobal,Percentis 5-95conv'!A96 -> 9400 | B28: ='[1]MedianGlobal,Percentis 5-95conv'!B96 -> -0.004712336558 | C28: ='[1]MedianGlobal,Percentis 5-95conv'!D96 -> 0.6342550758
A29: ='[1]MedianGlobal,Percentis 5-95conv'!A95 -> 9300 | B29: ='[1]MedianGlobal,Percentis 5-95conv'!B95 -> 0.005799509039 | C29: ='[1]MedianGlobal,Percentis 5-95conv'!D95 -> 0.6437365197
A30: ='[1]MedianGlobal,Percentis 5-95conv'!A94 -> 9200 | B30: ='[1]MedianGlobal,Percentis 5-95conv'!B94 -> 0.01286457879 | C30: ='[1]MedianGlobal,Percentis 5-95conv'!D94 -> 0.6325162347
A31: ='[1]MedianGlobal,Percentis 5-95conv'!A93 -> 9100 | B31: ='[1]MedianGlobal,Percentis 5-95conv'!B93 -> 0.02537245189 | C31: ='[1]MedianGlobal,Percentis 5-95conv'!D93 -> 0.6385103832
A32: ='[1]MedianGlobal,Percentis 5-95conv'!A92 -> 9000 | B32: ='[1]MedianGlobal,Percentis 5-95conv'!B92 -> 0.04191244809 | C32: ='[1]MedianGlobal,Percentis 5-95conv'!D92 -> 0.6715491077 | H32: Figure 4. Evolution of the parameters 5th and 95th global percentiles (uncertainties), refer to page 3, fig. 2 of the article.
A33: ='[1]MedianGlobal,Percentis 5-95conv'!A91 -> 8900 | B33: ='[1]MedianGlobal,Percentis 5-95conv'!B91 -> 0.02885848614 | C33: ='[1]MedianGlobal,Percentis 5-95conv'!D91 -> 0.6859833134 | H33: Source: Author elaboration (adapted from CSV file data - temp 12K all methods percentiles
A34: ='[1]MedianGlobal,Percentis 5-95conv'!A90 -> 8800 | B34: ='[1]MedianGlobal,Percentis 5-95conv'!B90 -> 0.04820179124 | C34: ='[1]MedianGlobal,Percentis 5-95conv'!D90 -> 0.6771285859 | H34: at https://www.ncdc.noaa.gov/paleo/study/29712).
A35: ='[1]MedianGlobal,Percentis 5-95conv'!A89 -> 8700 | B35: ='[1]MedianGlobal,Percentis 5-95conv'!B89 -> 0.0452023996 | C35: ='[1]MedianGlobal,Percentis 5-95conv'!D89 -> 0.7049082081
A36: ='[1]MedianGlobal,Percentis 5-95conv'!A88 -> 8600 | B36: ='[1]MedianGlobal,Percentis 5-95conv'!B88 -> 0.0564019609 | C36: ='[1]MedianGlobal,Percentis 5-95conv'!D88 -> 0.7321991535
A37: ='[1]MedianGlobal,Percentis 5-95conv'!A87 -> 8500 | B37: ='[1]MedianGlobal,Percentis 5-95conv'!B87 -> 0.06216535742 | C37: ='[1]MedianGlobal,Percentis 5-95conv'!D87 -> 0.7349796046
A38: ='[1]MedianGlobal,Percentis 5-95conv'!A86 -> 8400 | B38: ='[1]MedianGlobal,Percentis 5-95conv'!B86 -> 0.06790363712 | C38: ='[1]MedianGlobal,Percentis 5-95conv'!D86 -> 0.7519538847
A39: ='[1]MedianGlobal,Percentis 5-95conv'!A85 -> 8300 | B39: ='[1]MedianGlobal,Percentis 5-95conv'!B85 -> 0.09528753331 | C39: ='[1]MedianGlobal,Percentis 5-95conv'!D85 -> 0.7842431898
A40: ='[1]MedianGlobal,Percentis 5-95conv'!A84 -> 8200 | B40: ='[1]MedianGlobal,Percentis 5-95conv'!B84 -> 0.0919707582 | C40: ='[1]MedianGlobal,Percentis 5-95conv'!D84 -> 0.8326062437
A41: ='[1]MedianGlobal,Percentis 5-95conv'!A83 -> 8100 | B41: ='[1]MedianGlobal,Percentis 5-95conv'!B83 -> 0.1163166948 | C41: ='[1]MedianGlobal,Percentis 5-95conv'!D83 -> 0.8681990884
A42: ='[1]MedianGlobal,Percentis 5-95conv'!A82 -> 8000 | B42: ='[1]MedianGlobal,Percentis 5-95conv'!B82 -> 0.1241623395 | C42: ='[1]MedianGlobal,Percentis 5-95conv'!D82 -> 0.8973186982
A43: ='[1]MedianGlobal,Percentis 5-95conv'!A81 -> 7900 | B43: ='[1]MedianGlobal,Percentis 5-95conv'!B81 -> 0.1207538866 | C43: ='[1]MedianGlobal,Percentis 5-95conv'!D81 -> 0.9508968814
A44: ='[1]MedianGlobal,Percentis 5-95conv'!A80 -> 7800 | B44: ='[1]MedianGlobal,Percentis 5-95conv'!B80 -> 0.1554329795 | C44: ='[1]MedianGlobal,Percentis 5-95conv'!D80 -> 1.007528648
A45: ='[1]MedianGlobal,Percentis 5-95conv'!A79 -> 7700 | B45: ='[1]MedianGlobal,Percentis 5-95conv'!B79 -> 0.1397889927 | C45: ='[1]MedianGlobal,Percentis 5-95conv'!D79 -> 1.060906526
A46: ='[1]MedianGlobal,Percentis 5-95conv'!A78 -> 7600 | B46: ='[1]MedianGlobal,Percentis 5-95conv'!B78 -> 0.1667239031 | C46: ='[1]MedianGlobal,Percentis 5-95conv'!D78 -> 1.088652952
A47: ='[1]MedianGlobal,Percentis 5-95conv'!A77 -> 7500 | B47: ='[1]MedianGlobal,Percentis 5-95conv'!B77 -> 0.1671423625 | C47: ='[1]MedianGlobal,Percentis 5-95conv'!D77 -> 1.155375442
A48: ='[1]MedianGlobal,Percentis 5-95conv'!A76 -> 7400 | B48: ='[1]MedianGlobal,Percentis 5-95conv'!B76 -> 0.1880443372 | C48: ='[1]MedianGlobal,Percentis 5-95conv'!D76 -> 1.192422054
A49: ='[1]MedianGlobal,Percentis 5-95conv'!A75 -> 7300 | B49: ='[1]MedianGlobal,Percentis 5-95conv'!B75 -> 0.2263465107 | C49: ='[1]MedianGlobal,Percentis 5-95conv'!D75 -> 1.237887627
A50: ='[1]MedianGlobal,Percentis 5-95conv'!A74 -> 7200 | B50: ='[1]MedianGlobal,Percentis 5-95conv'!B74 -> 0.2305667118 | C50: ='[1]MedianGlobal,Percentis 5-95conv'!D74 -> 1.261668174
A51: ='[1]MedianGlobal,Percentis 5-95conv'!A73 -> 7100 | B51: ='[1]MedianGlobal,Percentis 5-95conv'!B73 -> 0.2524516787 | C51: ='[1]MedianGlobal,Percentis 5-95conv'!D73 -> 1.303958187
A52: ='[1]MedianGlobal,Percentis 5-95conv'!A72 -> 7000 | B52: ='[1]MedianGlobal,Percentis 5-95conv'!B72 -> 0.26621183 | C52: ='[1]MedianGlobal,Percentis 5-95conv'!D72 -> 1.298480575
A53: ='[1]MedianGlobal,Percentis 5-95conv'!A71 -> 6900 | B53: ='[1]MedianGlobal,Percentis 5-95conv'!B71 -> 0.2670083609 | C53: ='[1]MedianGlobal,Percentis 5-95conv'!D71 -> 1.311582212
A54: ='[1]MedianGlobal,Percentis 5-95conv'!A70 -> 6800 | B54: ='[1]MedianGlobal,Percentis 5-95conv'!B70 -> 0.2855663753 | C54: ='[1]MedianGlobal,Percentis 5-95conv'!D70 -> 1.327239404
A55: ='[1]MedianGlobal,Percentis 5-95conv'!A69 -> 6700 | B55: ='[1]MedianGlobal,Percentis 5-95conv'!B69 -> 0.294444357 | C55: ='[1]MedianGlobal,Percentis 5-95conv'!D69 -> 1.340124725
A56: ='[1]MedianGlobal,Percentis 5-95conv'!A68 -> 6600 | B56: ='[1]MedianGlobal,Percentis 5-95conv'!B68 -> 0.3009749556 | C56: ='[1]MedianGlobal,Percentis 5-95conv'!D68 -> 1.396320928
A57: ='[1]MedianGlobal,Percentis 5-95conv'!A67 -> 6500 | B57: ='[1]MedianGlobal,Percentis 5-95conv'!B67 -> 0.2879552906 | C57: ='[1]MedianGlobal,Percentis 5-95conv'!D67 -> 1.382200042
A58: ='[1]MedianGlobal,Percentis 5-95conv'!A66 -> 6400 | B58: ='[1]MedianGlobal,Percentis 5-95conv'!B66 -> 0.2918127975 | C58: ='[1]MedianGlobal,Percentis 5-95conv'!D66 -> 1.362365277
A59: ='[1]MedianGlobal,Percentis 5-95conv'!A65 -> 6300 | B59: ='[1]MedianGlobal,Percentis 5-95conv'!B65 -> 0.2786473947 | C59: ='[1]MedianGlobal,Percentis 5-95conv'!D65 -> 1.396644809
A60: ='[1]MedianGlobal,Percentis 5-95conv'!A64 -> 6200 | B60: ='[1]MedianGlobal,Percentis 5-95conv'!B64 -> 0.2913895851 | C60: ='[1]MedianGlobal,Percentis 5-95conv'!D64 -> 1.375370411
A61: ='[1]MedianGlobal,Percentis 5-95conv'!A63 -> 6100 | B61: ='[1]MedianGlobal,Percentis 5-95conv'!B63 -> 0.2775573734 | C61: ='[1]MedianGlobal,Percentis 5-95conv'!D63 -> 1.366634033
A62: ='[1]MedianGlobal,Percentis 5-95conv'!A62 -> 6000 | B62: ='[1]MedianGlobal,Percentis 5-95conv'!B62 -> 0.2725149961 | C62: ='[1]MedianGlobal,Percentis 5-95conv'!D62 -> 1.292675211
A63: ='[1]MedianGlobal,Percentis 5-95conv'!A61 -> 5900 | B63: ='[1]MedianGlobal,Percentis 5-95conv'!B61 -> 0.2467705318 | C63: ='[1]MedianGlobal,Percentis 5-95conv'!D61 -> 1.262539724
A64: ='[1]MedianGlobal,Percentis 5-95conv'!A60 -> 5800 | B64: ='[1]MedianGlobal,Percentis 5-95conv'!B60 -> 0.2470767435 | C64: ='[1]MedianGlobal,Percentis 5-95conv'!D60 -> 1.282706487
A65: ='[1]MedianGlobal,Percentis 5-95conv'!A59 -> 5700 | B65: ='[1]MedianGlobal,Percentis 5-95conv'!B59 -> 0.2261208508 | C65: ='[1]MedianGlobal,Percentis 5-95conv'!D59 -> 1.266019483
A66: ='[1]MedianGlobal,Percentis 5-95conv'!A58 -> 5600 | B66: ='[1]MedianGlobal,Percentis 5-95conv'!B58 -> 0.2392500279 | C66: ='[1]MedianGlobal,Percentis 5-95conv'!D58 -> 1.214758449
A67: ='[1]MedianGlobal,Percentis 5-95conv'!A57 -> 5500 | B67: ='[1]MedianGlobal,Percentis 5-95conv'!B57 -> 0.2140420753 | C67: ='[1]MedianGlobal,Percentis 5-95conv'!D57 -> 1.145479102
A68: ='[1]MedianGlobal,Percentis 5-95conv'!A56 -> 5400 | B68: ='[1]MedianGlobal,Percentis 5-95conv'!B56 -> 0.219006509 | C68: ='[1]MedianGlobal,Percentis 5-95conv'!D56 -> 1.138017092
A69: ='[1]MedianGlobal,Percentis 5-95conv'!A55 -> 5300 | B69: ='[1]MedianGlobal,Percentis 5-95conv'!B55 -> 0.201805217 | C69: ='[1]MedianGlobal,Percentis 5-95conv'!D55 -> 1.144058507
A70: ='[1]MedianGlobal,Percentis 5-95conv'!A54 -> 5200 | B70: ='[1]MedianGlobal,Percentis 5-95conv'!B54 -> 0.203958933 | C70: ='[1]MedianGlobal,Percentis 5-95conv'!D54 -> 1.097828687
A71: ='[1]MedianGlobal,Percentis 5-95conv'!A53 -> 5100 | B71: ='[1]MedianGlobal,Percentis 5-95conv'!B53 -> 0.2101158873 | C71: ='[1]MedianGlobal,Percentis 5-95conv'!D53 -> 1.080444023
A72: ='[1]MedianGlobal,Percentis 5-95conv'!A52 -> 5000 | B72: ='[1]MedianGlobal,Percentis 5-95conv'!B52 -> 0.202848139 | C72: ='[1]MedianGlobal,Percentis 5-95conv'!D52 -> 1.096604657
A73: ='[1]MedianGlobal,Percentis 5-95conv'!A51 -> 4900 | B73: ='[1]MedianGlobal,Percentis 5-95conv'!B51 -> 0.1978025937 | C73: ='[1]MedianGlobal,Percentis 5-95conv'!D51 -> 1.090443352
A74: ='[1]MedianGlobal,Percentis 5-95conv'!A50 -> 4800 | B74: ='[1]MedianGlobal,Percentis 5-95conv'!B50 -> 0.178218079 | C74: ='[1]MedianGlobal,Percentis 5-95conv'!D50 -> 1.044987604
A75: ='[1]MedianGlobal,Percentis 5-95conv'!A49 -> 4700 | B75: ='[1]MedianGlobal,Percentis 5-95conv'!B49 -> 0.1830729614 | C75: ='[1]MedianGlobal,Percentis 5-95conv'!D49 -> 1.008277898
A76: ='[1]MedianGlobal,Percentis 5-95conv'!A48 -> 4600 | B76: ='[1]MedianGlobal,Percentis 5-95conv'!B48 -> 0.1613540938 | C76: ='[1]MedianGlobal,Percentis 5-95conv'!D48 -> 0.972590092
A77: ='[1]MedianGlobal,Percentis 5-95conv'!A47 -> 4500 | B77: ='[1]MedianGlobal,Percentis 5-95conv'!B47 -> 0.1529400171 | C77: ='[1]MedianGlobal,Percentis 5-95conv'!D47 -> 0.9709150906
A78: ='[1]MedianGlobal,Percentis 5-95conv'!A46 -> 4400 | B78: ='[1]MedianGlobal,Percentis 5-95conv'!B46 -> 0.1484574372 | C78: ='[1]MedianGlobal,Percentis 5-95conv'!D46 -> 0.9611088761
A79: ='[1]MedianGlobal,Percentis 5-95conv'!A45 -> 4300 | B79: ='[1]MedianGlobal,Percentis 5-95conv'!B45 -> 0.1316207857 | C79: ='[1]MedianGlobal,Percentis 5-95conv'!D45 -> 0.9157677888
A80: ='[1]MedianGlobal,Percentis 5-95conv'!A44 -> 4200 | B80: ='[1]MedianGlobal,Percentis 5-95conv'!B44 -> 0.1338290927 | C80: ='[1]MedianGlobal,Percentis 5-95conv'!D44 -> 0.9109209842
A81: ='[1]MedianGlobal,Percentis 5-95conv'!A43 -> 4100 | B81: ='[1]MedianGlobal,Percentis 5-95conv'!B43 -> 0.1367634185 | C81: ='[1]MedianGlobal,Percentis 5-95conv'!D43 -> 0.9262385807
A82: ='[1]MedianGlobal,Percentis 5-95conv'!A42 -> 4000 | B82: ='[1]MedianGlobal,Percentis 5-95conv'!B42 -> 0.1309730393 | C82: ='[1]MedianGlobal,Percentis 5-95conv'!D42 -> 0.8799445127
A83: ='[1]MedianGlobal,Percentis 5-95conv'!A41 -> 3900 | B83: ='[1]MedianGlobal,Percentis 5-95conv'!B41 -> 0.1329559329 | C83: ='[1]MedianGlobal,Percentis 5-95conv'!D41 -> 0.9069229473
A84: ='[1]MedianGlobal,Percentis 5-95conv'!A40 -> 3800 | B84: ='[1]MedianGlobal,Percentis 5-95conv'!B40 -> 0.1451718984 | C84: ='[1]MedianGlobal,Percentis 5-95conv'!D40 -> 0.926169322
A85: ='[1]MedianGlobal,Percentis 5-95conv'!A39 -> 3700 | B85: ='[1]MedianGlobal,Percentis 5-95conv'!B39 -> 0.1409011158 | C85: ='[1]MedianGlobal,Percentis 5-95conv'!D39 -> 0.9744423819
A86: ='[1]MedianGlobal,Percentis 5-95conv'!A38 -> 3600 | B86: ='[1]MedianGlobal,Percentis 5-95conv'!B38 -> 0.1329643841 | C86: ='[1]MedianGlobal,Percentis 5-95conv'!D38 -> 0.9222261671
A87: ='[1]MedianGlobal,Percentis 5-95conv'!A37 -> 3500 | B87: ='[1]MedianGlobal,Percentis 5-95conv'!B37 -> 0.1148162091 | C87: ='[1]MedianGlobal,Percentis 5-95conv'!D37 -> 0.8859221706
A88: ='[1]MedianGlobal,Percentis 5-95conv'!A36 -> 3400 | B88: ='[1]MedianGlobal,Percentis 5-95conv'!B36 -> 0.1297943617 | C88: ='[1]MedianGlobal,Percentis 5-95conv'!D36 -> 0.8149322197
A89: ='[1]MedianGlobal,Percentis 5-95conv'!A35 -> 3300 | B89: ='[1]MedianGlobal,Percentis 5-95conv'!B35 -> 0.08788042106 | C89: ='[1]MedianGlobal,Percentis 5-95conv'!D35 -> 0.7875751888
A90: ='[1]MedianGlobal,Percentis 5-95conv'!A34 -> 3200 | B90: ='[1]MedianGlobal,Percentis 5-95conv'!B34 -> 0.09324018805 | C90: ='[1]MedianGlobal,Percentis 5-95conv'!D34 -> 0.7742845065
A91: ='[1]MedianGlobal,Percentis 5-95conv'!A33 -> 3100 | B91: ='[1]MedianGlobal,Percentis 5-95conv'!B33 -> 0.07920163043 | C91: ='[1]MedianGlobal,Percentis 5-95conv'!D33 -> 0.7748100108
A92: ='[1]MedianGlobal,Percentis 5-95conv'!A32 -> 3000 | B92: ='[1]MedianGlobal,Percentis 5-95conv'!B32 -> 0.05112667731 | C92: ='[1]MedianGlobal,Percentis 5-95conv'!D32 -> 0.7140536946
A93: ='[1]MedianGlobal,Percentis 5-95conv'!A31 -> 2900 | B93: ='[1]MedianGlobal,Percentis 5-95conv'!B31 -> 0.03540558482 | C93: ='[1]MedianGlobal,Percentis 5-95conv'!D31 -> 0.6878765899
A94: ='[1]MedianGlobal,Percentis 5-95conv'!A30 -> 2800 | B94: ='[1]MedianGlobal,Percentis 5-95conv'!B30 -> 0.009303380779 | C94: ='[1]MedianGlobal,Percentis 5-95conv'!D30 -> 0.6535562757
A95: ='[1]MedianGlobal,Percentis 5-95conv'!A29 -> 2700 | B95: ='[1]MedianGlobal,Percentis 5-95conv'!B29 -> -0.001435850034 | C95: ='[1]MedianGlobal,Percentis 5-95conv'!D29 -> 0.6132690919
A96: ='[1]MedianGlobal,Percentis 5-95conv'!A28 -> 2600 | B96: ='[1]MedianGlobal,Percentis 5-95conv'!B28 -> -0.01485230927 | C96: ='[1]MedianGlobal,Percentis 5-95conv'!D28 -> 0.5848192599
A97: ='[1]MedianGlobal,Percentis 5-95conv'!A27 -> 2500 | B97: ='[1]MedianGlobal,Percentis 5-95conv'!B27 -> -0.006981635783 | C97: ='[1]MedianGlobal,Percentis 5-95conv'!D27 -> 0.6113402756
A98: ='[1]MedianGlobal,Percentis 5-95conv'!A26 -> 2400 | B98: ='[1]MedianGlobal,Percentis 5-95conv'!B26 -> -0.0126511897 | C98: ='[1]MedianGlobal,Percentis 5-95conv'!D26 -> 0.5639166381
A99: ='[1]MedianGlobal,Percentis 5-95conv'!A25 -> 2300 | B99: ='[1]MedianGlobal,Percentis 5-95conv'!B25 -> -0.009159608767 | C99: ='[1]MedianGlobal,Percentis 5-95conv'!D25 -> 0.5700731467
A100: ='[1]MedianGlobal,Percentis 5-95conv'!A24 -> 2200 | B100: ='[1]MedianGlobal,Percentis 5-95conv'!B24 -> -0.02579218301 | C100: ='[1]MedianGlobal,Percentis 5-95conv'!D24 -> 0.5334196791
A101: ='[1]MedianGlobal,Percentis 5-95conv'!A23 -> 2100 | B101: ='[1]MedianGlobal,Percentis 5-95conv'!B23 -> -0.06795367784 | C101: ='[1]MedianGlobal,Percentis 5-95conv'!D23 -> 0.4894985214
A102: ='[1]MedianGlobal,Percentis 5-95conv'!A22 -> 2000 | B102: ='[1]MedianGlobal,Percentis 5-95conv'!B22 -> -0.09872586977 | C102: ='[1]MedianGlobal,Percentis 5-95conv'!D22 -> 0.4225211018
A103: ='[1]MedianGlobal,Percentis 5-95conv'!A21 -> 1900 | B103: ='[1]MedianGlobal,Percentis 5-95conv'!B21 -> -0.1248236399 | C103: ='[1]MedianGlobal,Percentis 5-95conv'!D21 -> 0.4126221741
A104: ='[1]MedianGlobal,Percentis 5-95conv'!A20 -> 1800 | B104: ='[1]MedianGlobal,Percentis 5-95conv'!B20 -> -0.1046872854 | C104: ='[1]MedianGlobal,Percentis 5-95conv'!D20 -> 0.4600112624
A105: ='[1]MedianGlobal,Percentis 5-95conv'!A19 -> 1700 | B105: ='[1]MedianGlobal,Percentis 5-95conv'!B19 -> -0.1117950539 | C105: ='[1]MedianGlobal,Percentis 5-95conv'!D19 -> 0.4648216469
A106: ='[1]MedianGlobal,Percentis 5-95conv'!A18 -> 1600 | B106: ='[1]MedianGlobal,Percentis 5-95conv'!B18 -> -0.1439575141 | C106: ='[1]MedianGlobal,Percentis 5-95conv'!D18 -> 0.408127837
A107: ='[1]MedianGlobal,Percentis 5-95conv'!A17 -> 1500 | B107: ='[1]MedianGlobal,Percentis 5-95conv'!B17 -> -0.1313105559 | C107: ='[1]MedianGlobal,Percentis 5-95conv'!D17 -> 0.3992490319
A108: ='[1]MedianGlobal,Percentis 5-95conv'!A16 -> 1400 | B108: ='[1]MedianGlobal,Percentis 5-95conv'!B16 -> -0.1152449479 | C108: ='[1]MedianGlobal,Percentis 5-95conv'!D16 -> 0.4500576371
A109: ='[1]MedianGlobal,Percentis 5-95conv'!A15 -> 1300 | B109: ='[1]MedianGlobal,Percentis 5-95conv'!B15 -> -0.07200792975 | C109: ='[1]MedianGlobal,Percentis 5-95conv'!D15 -> 0.5039525632
A110: ='[1]MedianGlobal,Percentis 5-95conv'!A14 -> 1200 | B110: ='[1]MedianGlobal,Percentis 5-95conv'!B14 -> -0.118810824 | C110: ='[1]MedianGlobal,Percentis 5-95conv'!D14 -> 0.5111449221
A111: ='[1]MedianGlobal,Percentis 5-95conv'!A13 -> 1100 | B111: ='[1]MedianGlobal,Percentis 5-95conv'!B13 -> -0.1453192516 | C111: ='[1]MedianGlobal,Percentis 5-95conv'!D13 -> 0.4704336237
A112: ='[1]MedianGlobal,Percentis 5-95conv'!A12 -> 1000 | B112: ='[1]MedianGlobal,Percentis 5-95conv'!B12 -> -0.1877797789 | C112: ='[1]MedianGlobal,Percentis 5-95conv'!D12 -> 0.4202813926
A113: ='[1]MedianGlobal,Percentis 5-95conv'!A11 -> 900 | B113: ='[1]MedianGlobal,Percentis 5-95conv'!B11 -> -0.2174405753 | C113: ='[1]MedianGlobal,Percentis 5-95conv'!D11 -> 0.3793313659
A114: ='[1]MedianGlobal,Percentis 5-95conv'!A10 -> 800 | B114: ='[1]MedianGlobal,Percentis 5-95conv'!B10 -> -0.2015568698 | C114: ='[1]MedianGlobal,Percentis 5-95conv'!D10 -> 0.3748205258
A115: ='[1]MedianGlobal,Percentis 5-95conv'!A9 -> 700 | B115: ='[1]MedianGlobal,Percentis 5-95conv'!B9 -> -0.2277414066 | C115: ='[1]MedianGlobal,Percentis 5-95conv'!D9 -> 0.3818160381
A116: ='[1]MedianGlobal,Percentis 5-95conv'!A8 -> 600 | B116: ='[1]MedianGlobal,Percentis 5-95conv'!B8 -> -0.2401177017 | C116: ='[1]MedianGlobal,Percentis 5-95conv'!D8 -> 0.3652211936
A117: ='[1]MedianGlobal,Percentis 5-95conv'!A7 -> 500 | B117: ='[1]MedianGlobal,Percentis 5-95conv'!B7 -> -0.2843036542 | C117: ='[1]MedianGlobal,Percentis 5-95conv'!D7 -> 0.339327477
A118: ='[1]MedianGlobal,Percentis 5-95conv'!A6 -> 400 | B118: ='[1]MedianGlobal,Percentis 5-95conv'!B6 -> -0.3161970321 | C118: ='[1]MedianGlobal,Percentis 5-95conv'!D6 -> 0.3475193786
A119: ='[1]MedianGlobal,Percentis 5-95conv'!A5 -> 300 | B119: ='[1]MedianGlobal,Percentis 5-95conv'!B5 -> -0.313275977 | C119: ='[1]MedianGlobal,Percentis 5-95conv'!D5 -> 0.3591864251
A120: ='[1]MedianGlobal,Percentis 5-95conv'!A4 -> 200 | B120: ='[1]MedianGlobal,Percentis 5-95conv'!B4 -> -0.2895163983 | C120: ='[1]MedianGlobal,Percentis 5-95conv'!D4 -> 0.3867425889
A121: ='[1]MedianGlobal,Percentis 5-95conv'!A3 -> 100 | B121: ='[1]MedianGlobal,Percentis 5-95conv'!B3 -> -0.3420046379 | C121: ='[1]MedianGlobal,Percentis 5-95conv'!D3 -> 0.3556380226
A122: ='[1]MedianGlobal,Percentis 5-95conv'!A2 -> 0 | B122: ='[1]MedianGlobal,Percentis 5-95conv'!B2 -> -0.2624000688 | C122: ='[1]MedianGlobal,Percentis 5-95conv'!D2 -> 0.57947053
A281: ='[1]MedianGlobal,Percentis 5-95conv'!A281 -> 0 | B281: ='[1]MedianGlobal,Percentis 5-95conv'!B281 -> 0
A282: ='[1]MedianGlobal,Percentis 5-95conv'!A282 -> 0 | B282: ='[1]MedianGlobal,Percentis 5-95conv'!B282 -> 0
A283: ='[1]MedianGlobal,Percentis 5-95conv'!A283 -> 0 | B283: ='[1]MedianGlobal,Percentis 5-95conv'!B283 -> 0
A284: ='[1]MedianGlobal,Percentis 5-95conv'!A284 -> 0 | B284: ='[1]MedianGlobal,Percentis 5-95conv'!B284 -> 0
A285: ='[1]MedianGlobal,Percentis 5-95conv'!A285 -> 0 | B285: ='[1]MedianGlobal,Percentis 5-95conv'!B285 -> 0
A286: ='[1]MedianGlobal,Percentis 5-95conv'!A286 -> 0 | B286: ='[1]MedianGlobal,Percentis 5-95conv'!B286 -> 0
A287: ='[1]MedianGlobal,Percentis 5-95conv'!A287 -> 0 | B287: ='[1]MedianGlobal,Percentis 5-95conv'!B287 -> 0
A288: ='[1]MedianGlobal,Percentis 5-95conv'!A288 -> 0 | B288: ='[1]MedianGlobal,Percentis 5-95conv'!B288 -> 0
A289: ='[1]MedianGlobal,Percentis 5-95conv'!A289 -> 0 | B289: ='[1]MedianGlobal,Percentis 5-95conv'!B289 -> 0
A290: ='[1]MedianGlobal,Percentis 5-95conv'!A290 -> 0 | B290: ='[1]MedianGlobal,Percentis 5-95conv'!B290 -> 0
A291: ='[1]MedianGlobal,Percentis 5-95conv'!A291 -> 0 | B291: ='[1]MedianGlobal,Percentis 5-95conv'!B291 -> 0
A292: ='[1]MedianGlobal,Percentis 5-95conv'!A292 -> 0 | B292: ='[1]MedianGlobal,Percentis 5-95conv'!B292 -> 0
A293: ='[1]MedianGlobal,Percentis 5-95conv'!A293 -> 0 | B293: ='[1]MedianGlobal,Percentis 5-95conv'!B293 -> 0
A294: ='[1]MedianGlobal,Percentis 5-95conv'!A294 -> 0 | B294: ='[1]MedianGlobal,Percentis 5-95conv'!B294 -> 0
A295: ='[1]MedianGlobal,Percentis 5-95conv'!A295 -> 0 | B295: ='[1]MedianGlobal,Percentis 5-95conv'!B295 -> 0
A296: ='[1]MedianGlobal,Percentis 5-95conv'!A296 -> 0 | B296: ='[1]MedianGlobal,Percentis 5-95conv'!B296 -> 0
A297: ='[1]MedianGlobal,Percentis 5-95conv'!A297 -> 0 | B297: ='[1]MedianGlobal,Percentis 5-95conv'!B297 -> 0
A298: ='[1]MedianGlobal,Percentis 5-95conv'!A298 -> 0 | B298: ='[1]MedianGlobal,Percentis 5-95conv'!B298 -> 0
A299: ='[1]MedianGlobal,Percentis 5-95conv'!A299 -> 0 | B299: ='[1]MedianGlobal,Percentis 5-95conv'!B299 -> 0
A300: ='[1]MedianGlobal,Percentis 5-95conv'!A300 -> 0 | B300: ='[1]MedianGlobal,Percentis 5-95conv'!B300 -> 0
A301: ='[1]MedianGlobal,Percentis 5-95conv'!A301 -> 0 | B301: ='[1]MedianGlobal,Percentis 5-95conv'!B301 -> 0
A302: ='[1]MedianGlobal,Percentis 5-95conv'!A302 -> 0 | B302: ='[1]MedianGlobal,Percentis 5-95conv'!B302 -> 0
A303: ='[1]MedianGlobal,Percentis 5-95conv'!A303 -> 0 | B303: ='[1]MedianGlobal,Percentis 5-95conv'!B303 -> 0
A304: ='[1]MedianGlobal,Percentis 5-95conv'!A304 -> 0 | B304: ='[1]MedianGlobal,Percentis 5-95conv'!B304 -> 0
A305: ='[1]MedianGlobal,Percentis 5-95conv'!A305 -> 0 | B305: ='[1]MedianGlobal,Percentis 5-95conv'!B305 -> 0
A306: ='[1]MedianGlobal,Percentis 5-95conv'!A306 -> 0 | B306: ='[1]MedianGlobal,Percentis 5-95conv'!B306 -> 0
A307: ='[1]MedianGlobal,Percentis 5-95conv'!A307 -> 0 | B307: ='[1]MedianGlobal,Percentis 5-95conv'!B307 -> 0
A308: ='[1]MedianGlobal,Percentis 5-95conv'!A308 -> 0 | B308: ='[1]MedianGlobal,Percentis 5-95conv'!B308 -> 0
A309: ='[1]MedianGlobal,Percentis 5-95conv'!A309 -> 0 | B309: ='[1]MedianGlobal,Percentis 5-95conv'!B309 -> 0
A310: ='[1]MedianGlobal,Percentis 5-95conv'!A310 -> 0 | B310: ='[1]MedianGlobal,Percentis 5-95conv'!B310 -> 0
A311: ='[1]MedianGlobal,Percentis 5-95conv'!A311 -> 0 | B311: ='[1]MedianGlobal,Percentis 5-95conv'!B311 -> 0
A312: ='[1]MedianGlobal,Percentis 5-95conv'!A312 -> 0 | B312: ='[1]MedianGlobal,Percentis 5-95conv'!B312 -> 0
A313: ='[1]MedianGlobal,Percentis 5-95conv'!A313 -> 0 | B313: ='[1]MedianGlobal,Percentis 5-95conv'!B313 -> 0
A314: ='[1]MedianGlobal,Percentis 5-95conv'!A314 -> 0 | B314: ='[1]MedianGlobal,Percentis 5-95conv'!B314 -> 0
A315: ='[1]MedianGlobal,Percentis 5-95conv'!A315 -> 0 | B315: ='[1]MedianGlobal,Percentis 5-95conv'!B315 -> 0
A316: ='[1]MedianGlobal,Percentis 5-95conv'!A316 -> 0 | B316: ='[1]MedianGlobal,Percentis 5-95conv'!B316 -> 0
A317: ='[1]MedianGlobal,Percentis 5-95conv'!A317 -> 0 | B317: ='[1]MedianGlobal,Percentis 5-95conv'!B317 -> 0
A318: ='[1]MedianGlobal,Percentis 5-95conv'!A318 -> 0 | B318: ='[1]MedianGlobal,Percentis 5-95conv'!B318 -> 0
A319: ='[1]MedianGlobal,Percentis 5-95conv'!A319 -> 0 | B319: ='[1]MedianGlobal,Percentis 5-95conv'!B319 -> 0
A320: ='[1]MedianGlobal,Percentis 5-95conv'!A320 -> 0 | B320: ='[1]MedianGlobal,Percentis 5-95conv'!B320 -> 0
A321: ='[1]MedianGlobal,Percentis 5-95conv'!A321 -> 0 | B321: ='[1]MedianGlobal,Percentis 5-95conv'!B321 -> 0
A322: ='[1]MedianGlobal,Percentis 5-95conv'!A322 -> 0 | B322: ='[1]MedianGlobal,Percentis 5-95conv'!B322 -> 0
A323: ='[1]MedianGlobal,Percentis 5-95conv'!A323 -> 0 | B323: ='[1]MedianGlobal,Percentis 5-95conv'!B323 -> 0
A324: ='[1]MedianGlobal,Percentis 5-95conv'!A324 -> 0 | B324: ='[1]MedianGlobal,Percentis 5-95conv'!B324 -> 0
A325: ='[1]MedianGlobal,Percentis 5-95conv'!A325 -> 0 | B325: ='[1]MedianGlobal,Percentis 5-95conv'!B325 -> 0
A326: ='[1]MedianGlobal,Percentis 5-95conv'!A326 -> 0 | B326: ='[1]MedianGlobal,Percentis 5-95conv'!B326 -> 0
A327: ='[1]MedianGlobal,Percentis 5-95conv'!A327 -> 0 | B327: ='[1]MedianGlobal,Percentis 5-95conv'!B327 -> 0
A328: ='[1]MedianGlobal,Percentis 5-95conv'!A328 -> 0 | B328: ='[1]MedianGlobal,Percentis 5-95conv'!B328 -> 0
A329: ='[1]MedianGlobal,Percentis 5-95conv'!A329 -> 0 | B329: ='[1]MedianGlobal,Percentis 5-95conv'!B329 -> 0
A330: ='[1]MedianGlobal,Percentis 5-95conv'!A330 -> 0 | B330: ='[1]MedianGlobal,Percentis 5-95conv'!B330 -> 0
A331: ='[1]MedianGlobal,Percentis 5-95conv'!A331 -> 0 | B331: ='[1]MedianGlobal,Percentis 5-95conv'!B331 -> 0
A332: ='[1]MedianGlobal,Percentis 5-95conv'!A332 -> 0 | B332: ='[1]MedianGlobal,Percentis 5-95conv'!B332 -> 0
A333: ='[1]MedianGlobal,Percentis 5-95conv'!A333 -> 0 | B333: ='[1]MedianGlobal,Percentis 5-95conv'!B333 -> 0
A334: ='[1]MedianGlobal,Percentis 5-95conv'!A334 -> 0 | B334: ='[1]MedianGlobal,Percentis 5-95conv'!B334 -> 0
A335: ='[1]MedianGlobal,Percentis 5-95conv'!A335 -> 0 | B335: ='[1]MedianGlobal,Percentis 5-95conv'!B335 -> 0
A336: ='[1]MedianGlobal,Percentis 5-95conv'!A336 -> 0 | B336: ='[1]MedianGlobal,Percentis 5-95conv'!B336 -> 0
A337: ='[1]MedianGlobal,Percentis 5-95conv'!A337 -> 0 | B337: ='[1]MedianGlobal,Percentis 5-95conv'!B337 -> 0
A338: ='[1]MedianGlobal,Percentis 5-95conv'!A338 -> 0 | B338: ='[1]MedianGlobal,Percentis 5-95conv'!B338 -> 0
A339: ='[1]MedianGlobal,Percentis 5-95conv'!A339 -> 0 | B339: ='[1]MedianGlobal,Percentis 5-95conv'!B339 -> 0
A340: ='[1]MedianGlobal,Percentis 5-95conv'!A340 -> 0 | B340: ='[1]MedianGlobal,Percentis 5-95conv'!B340 -> 0
A341: ='[1]MedianGlobal,Percentis 5-95conv'!A341 -> 0 | B341: ='[1]MedianGlobal,Percentis 5-95conv'!B341 -> 0
A342: ='[1]MedianGlobal,Percentis 5-95conv'!A342 -> 0 | B342: ='[1]MedianGlobal,Percentis 5-95conv'!B342 -> 0
A343: ='[1]MedianGlobal,Percentis 5-95conv'!A343 -> 0 | B343: ='[1]MedianGlobal,Percentis 5-95conv'!B343 -> 0
A344: ='[1]MedianGlobal,Percentis 5-95conv'!A344 -> 0 | B344: ='[1]MedianGlobal,Percentis 5-95conv'!B344 -> 0
A345: ='[1]MedianGlobal,Percentis 5-95conv'!A345 -> 0 | B345: ='[1]MedianGlobal,Percentis 5-95conv'!B345 -> 0
A346: ='[1]MedianGlobal,Percentis 5-95conv'!A346 -> 0 | B346: ='[1]MedianGlobal,Percentis 5-95conv'!B346 -> 0
A347: ='[1]MedianGlobal,Percentis 5-95conv'!A347 -> 0 | B347: ='[1]MedianGlobal,Percentis 5-95conv'!B347 -> 0
A348: ='[1]MedianGlobal,Percentis 5-95conv'!A348 -> 0 | B348: ='[1]MedianGlobal,Percentis 5-95conv'!B348 -> 0
A349: ='[1]MedianGlobal,Percentis 5-95conv'!A349 -> 0 | B349: ='[1]MedianGlobal,Percentis 5-95conv'!B349 -> 0
A350: ='[1]MedianGlobal,Percentis 5-95conv'!A350 -> 0 | B350: ='[1]MedianGlobal,Percentis 5-95conv'!B350 -> 0
A351: ='[1]MedianGlobal,Percentis 5-95conv'!A351 -> 0 | B351: ='[1]MedianGlobal,Percentis 5-95conv'!B351 -> 0
A352: ='[1]MedianGlobal,Percentis 5-95conv'!A352 -> 0 | B352: ='[1]MedianGlobal,Percentis 5-95conv'!B352 -> 0
A353: ='[1]MedianGlobal,Percentis 5-95conv'!A353 -> 0 | B353: ='[1]MedianGlobal,Percentis 5-95conv'!B353 -> 0
A354: ='[1]MedianGlobal,Percentis 5-95conv'!A354 -> 0 | B354: ='[1]MedianGlobal,Percentis 5-95conv'!B354 -> 0
A355: ='[1]MedianGlobal,Percentis 5-95conv'!A355 -> 0 | B355: ='[1]MedianGlobal,Percentis 5-95conv'!B355 -> 0
A356: ='[1]MedianGlobal,Percentis 5-95conv'!A356 -> 0 | B356: ='[1]MedianGlobal,Percentis 5-95conv'!B356 -> 0
A357: ='[1]MedianGlobal,Percentis 5-95conv'!A357 -> 0 | B357: ='[1]MedianGlobal,Percentis 5-95conv'!B357 -> 0
A358: ='[1]MedianGlobal,Percentis 5-95conv'!A358 -> 0 | B358: ='[1]MedianGlobal,Percentis 5-95conv'!B358 -> 0
... 4142 more rows

Sheet Md result 06temp
B3: Calculation of the median of the set of temperatures of the two variables (pages 4 to 6).
C5: ROL
C6: T1 | D6: -0.7
C7: T2 | D7: -0.266
C8: T3 | D8: -0.382 | F8: MED100 = | G8: =MEDIAN(D6:D11) -> 0.333
C9: T4 | D9: 0.932
C10: T5 | D10: 0.996
C11: T6 | D11: 0.999
C13: Figure 5. | D13: The result of the two parameters described in figures 3 and 6 of the article (p. 4, 5 and 6).
C14: Source: Prepared by the author.
